Cogmind - Beta 13 @@@ ROGUE MODE // 2024.04.13 @ 16:30:31 Player: Sage Result: Self-destructed Performance ------------- Evolutions (1) 500 Regions Visited (2) 400 Robots Destroyed (30) 150 Value Destroyed (512) 512 Prototype IDs (4) 80 Alien Tech Used (0) 0 Bonus (0) 0 TOTAL SCORE: 1642 Bonus ------- None Cogmind --------- Core Integrity 310/400 Matter 235/300 Energy 93/100 System Corruption 0% Temperature Cool (6) Movement Walking (120) Location -9/Materials Parts ------- > --- POWER (1) -------- (None) > --- PROPULSION (3) --- Aluminum Leg Aluminum Leg > --- UTILITY (3) ------ Small Storage Unit Structural Scanner Hacking Suite > --- WEAPON (2) ------- Small Laser Light Assault Rifle > --- INVENTORY (8) ---- Improved Ion Engine Hover Unit Seismic Detector ECM Suite Small Laser Rocket Launcher Peak State ------------ > --- POWER ------------ Ion Engine > --- PROPULSION ------- Aluminum Leg Aluminum Leg > --- UTILITY ---------- Small Storage Unit Structural Scanner Hacking Suite > --- WEAPON ----------- Small Laser Rocket Launcher > --- INVENTORY -------- Improved Ion Engine Aluminum Leg Hover Unit Seismic Detector ECM Suite Small Laser Light Assault Rifle [Rating: 11] Favorites ----------- Power Ion Engine Engine Ion Engine Propulsion Aluminum Leg Leg Aluminum Leg Utility Small Storage Unit Device Seismic Detector Storage Small Storage Unit Hackware Hacking Suite Weapon Small Laser Energy Gun Small Laser Ballistic Gun Light Assault Rifle Launcher Grenade Launcher Build | -11 -10 -9 ------- Run | Yrd Mat Mat Slots Evolved 2 | . . 2 Power . | . . . Propulsion 1 | . . 1 Utility 1 | . . 1 Weapon . | . . . Parts Attached 19 | 9 3 7 Power 2 | 2 . . Engine 2 | 2 . . Core . | . . . Reactor . | . . . Propulsion 5 | 2 1 2 Treads . | . . . Leg 5 | 2 1 2 Wheel . | . . . Hover . | . . . Flight . | . . . Utility 4 | 2 . 2 Device 2 | 1 . 1 Storage 1 | 1 . . Processor . | . . . Hackware 1 | . . 1 Protection . | . . . Artifact . | . . . Weapon 8 | 3 2 3 Energy Gun 3 | 1 1 1 Energy Cannon . | . . . Ballistic Gun 3 | 2 . 1 Ballistic Cannon . | . . . Launcher 2 | . 1 1 Special Weapon . | . . . Impact Weapon . | . . . Slashing Weapon . | . . . Piercing Weapon . | . . . Special Melee Weapon . | . . . Unidentified Prototypes . | . . . Parts Lost 4 | . 1 3 Power 1 | . . 1 Propulsion 2 | . . 2 Utility . | . . . Weapon 1 | . 1 . Highest Loss Streak 2 | . 1 2 To Critical Strikes . | . . . Average Slot Usage (%) 93 | . 99 83 Engine 11 | . 14 7 Leg 26 | . 27 22 Device 13 | . 14 12 Storage 12 | . 14 11 Hackware 2 | . . 7 Energy Gun 12 | . 13 11 Ballistic Gun 5 | . 4 5 Launcher 7 | . 8 5 Naked Turns . | . . . Heaviest Build 17 | 13 15 17 Greatest Support 30 | 20 20 30 Greatest Overweight (x) 1 | . 1 . Average Overweight (x) . | . . . Largest Inventory Capacity 8 | 8 8 8 Average Capacity 7 | 7 8 8 Most Carried 8 | 2 8 8 Average Carried 5 | . 6 6 Final Capacity 8 | 8 8 8 Final Carried 8 | 1 8 6 Class Distribution -------------------- 92% | Mutant 7% | Scavenger-Mutant Dominant Class ---------------- Mutant | -10/Materials Mutant | -9/Materials Resources | -11 -10 -9 ----------- Run | Yrd Mat Mat Matter Collected 481 | 247 149 85 Remotely . | . . . Salvage Created 560 | 34 381 145 Parts 55 | 6 31 18 Haulers Intercepted . | . . . Recyclers Shooed . | . . . Parts Field Recycled . | . . . Retrieved Matter . | . . . Parts Self-Destructed . | . . . Prevented . | . . . Kills | -11 -10 -9 ------- Run | Yrd Mat Mat Combat Hostiles Destroyed 19 | . 10 9 Guns 13 | . 7 6 AOE 6 | . 3 3 Classes Destroyed 8 | 1 7 . Worker 3 | . 2 1 Builder 1 | . 1 . Tunneler 3 | 2 1 . Recycler 1 | . 1 . Operator 1 | . 1 . Watcher 2 | . 2 . Swarmer 10 | . 3 7 Grunt 9 | . 7 2 Best Kill Streak 9 | 2 9 4 Combat Bots Only 4 | . 3 4 Max Kills in Single Turn 4 | 1 4 2 Gunslinging 1 | . . 1 Exploded 2 | . 1 2 Melee . | . . . Uniques/NPCs Destroyed . | . . . Combat | -11 -10 -9 -------- Run | Yrd Mat Mat Hostile Shots Fired 104 | . 33 71 Missed 34 | . 16 18 Damage Taken 798 | . 291 507 Core 127 | . 37 90 Absorbed by Shields . | . . . Core Remaining (%) 92 | 100 85 . Volleys Fired 62 | 2 37 23 Largest 2 | 2 2 2 Hottest 73 | 60 70 73 Shots Fired 115 | 4 65 46 Gun 101 | 4 53 44 Cannon . | . . . Launcher 14 | . 12 2 Special . | . . . Kinetic 39 | 2 16 21 Thermal 62 | 2 37 23 Explosive 14 | . 12 2 Electromagnetic . | . . . Robot Hit Streak 7 | 2 6 7 Robot Miss Streak 3 | . 3 3 Penetration Max . | . . . Secondary Targets 2 | . . 2 Max Gunslinging Chain 1 | . . 1 Shots Hit Robots 68 | 2 38 28 Core Hits 47 | 2 32 13 Critical Kills . | . . . Critical Parts Destroyed . | . . . Critical Strikes . | . . . Melee Attacks . | . . . Impact . | . . . Slashing . | . . . Piercing . | . . . Sneak Attacks . | . . . Combat Hostiles . | . . . Follow-up Attacks . | . . . Damage Inflicted 1395 | 22 887 486 Guns 614 | 22 346 246 Cannons . | . . . Explosions 780 | . 541 239 Melee . | . . . Ramming 1 | . . 1 Kinetic 169 | . 68 101 Thermal 445 | 22 278 145 Explosive 780 | . 541 239 Electromagnetic . | . . . Impact . | . . . Slashing . | . . . Piercing . | . . . Highest Corruption . | . . . Average Corruption . | . . . Corruption Purged . | . . . Corruption Blocked . | . . . Overload Shots . | . . . Overflow Damage 37 | . 37 . Projectiles . | . . . Explosions 37 | . 37 . Melee . | . . . Knockbacks . | . . . Impact . | . . . Kinetic . | . . . Secondary . | . . . Self-Inflicted Damage 60 | . 60 . Shots 4 | . 4 . Rammed . | . . . Targets Rammed 2 | . . 2 Kicked 2 | . . 2 Crushed . | . . . Highest Temperature 120 | 20 120 34 Average Temperature 23 | 15 30 9 Received Heat Transfer 252 | . 120 132 Siege Activations . | . . . Robots Corrupted . | . . . Combat Hostiles . | . . . Parts Fried . | . . . Impact Corruptions . | . . . Robots Melted . | . . . Combat Hostiles . | . . . Parts Melted . | . . . Heat Transferred 1000 | 50 625 325 Parts Sabotaged . | . . . Parts Stolen . | . . . Parts Stripped . | . . . Power Chain Reactions . | . . . Alert | -11 -10 -9 ------- Run | Yrd Mat Mat Peak Influence 375 | 10 343 375 Initial 89 | . 6 89 Average 168 | 2 156 251 Maximum Alert Level 1 | . 1 1 Low Security (%) 58 | 100 72 19 Level 1 41 | . 27 80 Level 2 . | . . . Level 3 . | . . . Level 4 . | . . . Level 5 . | . . . High Security . | . . . Max Security . | . . . Squads Dispatched 4 | . 2 2 Investigation 1 | . 1 . Extermination . | . . . Reinforcement 3 | . 1 2 Assault . | . . . Garrison . | . . . Intercept . | . . . Searches Triggered . | . . . Construction Impeded . | . . . Haulers Reinforced . | . . . Active Scanning Responses . | . . . Cargo Convoy Interrupts . | . . . Stealth | -11 -10 -9 --------- Run | Yrd Mat Mat Distress Signals 2 | . 1 1 Communications Jammed . | . . . Distress Signals . | . . . Times Spotted 32 | . 17 15 Peak Tracking Total 6 | . 3 6 Tactical Retreats 3 | . 1 2 Traps | -11 -10 -9 ------- Run | Yrd Mat Mat Traps Triggered . | . . . Indirectly . | . . . Trap Hack Attempts . | . . . Triggered . | . . . Disarmed . | . . . Reprogrammed . | . . . Reused . | . . . Traps Extracted . | . . . Installed . | . . . Triggered . | . . . Machines | -11 -10 -9 ---------- Run | Yrd Mat Mat Machines Disabled 1 | . . 1 Max in Single Turn 1 | . . 1 Machines Repaired . | . . . Machines Dismantled . | . . . Machines Sabotaged . | . . . Overloaded Fab Kills . | . . . Hacking | -11 -10 -9 --------- Run | Yrd Mat Mat Machines Accessed 7 | . 4 3 Terminals 6 | . 4 2 Fabricators . | . . . Repair Stations . | . . . Recycling Units . | . . . Scanalyzers 1 | . . 1 Garrison Access . | . . . Total Hacks 25 | . 13 12 Successful 13 | . 5 8 Failed 12 | . 8 4 Catastrophic 3 | . 1 2 Database Lockouts . | . . . Manual 12 | . 7 5 Terminals 20 | . 13 7 Fabricators . | . . . Repair Stations . | . . . Recycling Units . | . . . Scanalyzers 5 | . . 5 Garrison Access . | . . . Terminal Hacks 8 | . 5 3 Record 1 | . . 1 Prototype ID Bank 2 | . 2 . Terminal Index 1 | . 1 . Locate Traps 2 | . 1 1 Zone Layout 2 | . 1 1 Fabricator Hacks . | . . . Repair Station Hacks . | . . . Recycling Unit Hacks . | . . . Scanalyzer 5 | . . 5 Insert Component 2 | . . 2 Analyze 3 | . . 3 Garrison Access Hacks . | . . . Unauthorized Hacks . | . . . Terminals . | . . . Fabricators . | . . . Repair Stations . | . . . Recycling Units . | . . . Scanalyzers . | . . . Garrison Access . | . . . Data Cores Recovered . | . . . Used . | . . . Hacking Detections 7 | . 4 3 Full Trace Events 2 | . 1 1 Feedback Events . | . . . Feedback Blocked . | . . . Robot Schematics Acquired . | . . . Robots Built . | . . . Authchips . | . . . Time . | . . . Total Robot Build Rating . | . . . Part Schematics Acquired 2 | . . 2 Parts Built . | . . . Authchips . | . . . Time . | . . . Total Part Build Rating . | . . . Parts Repaired . | . . . Time . | . . . Parts Recycled . | . . . Recycled Matter . | . . . Retrieved Matter . | . . . Retrieved Components . | . . . Parts Scanalyzed 2 | . . 2 Part Schematics Acquired 2 | . . 2 Parts Damaged . | . . . Bothacking | -11 -10 -9 ------------ Run | Yrd Mat Mat Used RIF Installer . | . . . Robots Hacked . | . . . Non-combat . | . . . Combat . | . . . Robot Hacks Applied . | . . . Relay Couplers Released . | . . . Fabnet Peak Effective % . | . . . Robots Rewired . | . . . Allies Hacked . | . . . Hacks Repelled . | . . . Allies | -11 -10 -9 -------- Run | Yrd Mat Mat Total Allies . | . . . Largest Group . | . . . Highest-Rated Group . | . . . Highest-Rated Ally . | . . . Total Orders . | . . . Ally Attacks . | . . . Total Damage . | . . . Kills . | . . . Allies Corrupted . | . . . Allies Melted . | . . . Intel | -11 -10 -9 ------- Run | Yrd Mat Mat Robot Analysis Total . | . . . Derelict Logs Recovered . | . . . Drone Launches . | . . . Drone Recoveries . | . . . Exploration | -11 -10 -9 ------------- Run | Yrd Mat Mat Turns Passed 774 | 88 446 240 Spaces Moved 460 | 59 271 130 Core 2 | 2 . . Treads . | . . . Legs 458 | 57 271 130 Wheels . | . . . Hover . | . . . Flight . | . . . Fastest Speed 50 | 50 120 120 Average Speed 119 | 117 120 120 Slowest Speed 190 | 120 190 120 Overloaded Moves . | . . . Propulsion Burnouts . | . . . Robots Hopped . | . . . Cave-ins Triggered . | . . . Exploration Rate (%) 21 | 4 50 10 Regions Visited 2 Branch Regions . Pre-discovered Areas . | . . . Known Exits Taken . | . . . Unknown Exits Taken 2 | 1 1 . Scrap Searched . | . . . Spaces Dug . | . . . Terrain Destroyed 81 | . 70 11 Melee . | . . . Projectile . | . . . AOE 81 | . 70 11 Terrain Rammed . | . . . Walls Destroyed . | . . . Machines Disabled . | . . . Actions | -11 -10 -9 --------- Run | Yrd Mat Mat Total 575 | 71 331 173 Wait 16 | . 10 6 Move 458 | 58 270 130 Hop . | . . . Pick Up 8 | . 7 1 Fast Attach 11 | 8 1 2 Attach 8 | 1 2 5 Detach 8 | 2 3 3 Swap . | . . . Drop 2 | . 1 1 Fire 62 | 2 37 23 Melee . | . . . Ram . | . . . Kick 2 | . . 2 Crush . | . . . Escape Stasis . | . . . Rewire . | . . . Trap . | . . . Miscellaneous . | . . . Route ------- -11/Scrapyard -10/Materials -9/Materials History --------- Turn | Location | Event 7 | -11/Scrapyard | Discovered new exit (range 15) 89 | -11/Scrapyard | Entered Materials 284 | -10/Materials | Discovered new exit (range 15) 309 | -10/Materials | Build established: Mutant 535 | -10/Materials | Entered another Materials area 535 | -9/Materials | Evolved 2 slots: Propulsion x1, Utility x1 775 | -9/Materials | Self-destructed Last Messages --------------- 00667_ Acquired 11 matter. 00669_ S-10 Pest destroyed. 00671_ R-06 Scavenger collects Lgt. Ion Engine. 00693_ Ion Engine destroyed. 00696_ ALERT: Hostiles spotted, dispatching reinforcements to Terminal M009. 00699_ Aluminum Leg destroyed. 00710_ G-34 Mercenary destroyed. 00728_ Critical hit (Burn: +37). 00729_ Kicked T-07 Excavator out of the way. 00736_ G-34 Mercenary destroyed. 00738_ Kicked A-02 Transporter. 00744_ O-16 Technician sends out distress signal. 00754_ Acquired 11 matter. 00756_ Acquired 28 matter. 00760_ Acquired 34 matter. 00762_ Acquired Aluminum Leg. 00765_ ALERT: Hostiles spotted, dispatching reinforcements to Terminal M002. 00769_ Aluminum Leg destroyed. Map ----- +----------------------------------------------------+ | ?????????????????????????????????????????????????? | | ?????????????????????????????????????????????????? | | ?????????????????????????????????????????????????? | | ?????????????????????????????????????????????????? | | ?????????????????????????????????????????????????? | | ?????????????????????????????????????????????????? | | ???????????????????????????????? ???????????? | | ????????????????????????????????##+###???????????? | | ????????????????????????????????# ##???????????? | | ????????????????????????????????? ##???????????? | | ??????????????????????????????? ##???????????? | | ??????????????????????????????### ###??????????? | | ??????????????????????????????### ## ??????????? | | ??????????????????????????????## # ??????????? | | ??????????????????????????????## # ??????????? | | ??????########?# """ #"????## # ??????????? | | ??????########?# #"????## # ??????????? | | ??????## ##?########## ## # ??????????? | | ??????##"" ##################### ## ??????????? | | ??????##"T #############[ = # ##???????????? | | ??????##"" ## + * +*""" + ##???????????? | | ##????## ## *%#####*""" # ##???????????? | | #????## ## "" ##### """ # ?????????? | | #???### ## S"" ##?##s!= # "T??????? | | #???### ## "" ##?##g####### ?????? | | ####### ## #####@####### ???? | | # ###+######+#######s#########+## """"???? | | # ^ ^ + T ### ""?????? | | + ^ ^^ ##### ### ""?????? | | # % ##### ? ##?? ?????? | | # ####+########+###??????????? ????? | | ## """ " ## # ??????????? ###????? | | ## """ ## """ + ????????????? ##????? | | ## """ ## """ # ????????????????????? | | ## ]!!## """ # ????????????????????? | | ### ]! ## # ???????????????????? | | # """ ! ## # !???????????????????? | | # """ ######### ??????????????????? | | # """ ######### ##????????????????? | | + ##?????#############????????????????? | | " # ##?????#############????????????????? | | " # #########??????????????????????????????????? | | " # ########???????????????????????????????????? | | # #??????????????????????????????????????????? | | ### #??????????????????????????????????????????? | | ??#####??????????????????????????????????????????? | | ?????????????????????????????????????????????????? | | ?????????????????????????????????????????????????? | | ?????????????????????????????????????????????????? | | ?????????????????????????????????????????????????? | +----------------------------------------------------+ Best States ------------- Heat Dissipation 28 Energy Generation 10 Energy Capacity 250 Matter Stores 300 Matter Capacity 300 Sight Range 16 Terrain Scan Density 10 Evasion (%) 55 Offensive Hacking 10 Item Schematics ----------------- Hacking Suite | -9/Materials | Scanalyzed ECM Suite | -9/Materials | Scanalyzed Robot Schematics ------------------ None Fabricated ------------ Nothing Alien Tech Used ----------------- None Achievements -------------- None Challenges ------------ None Game ------ Seed VisualRegenerativeDoomcannon Manual? 0 Play Time 00:19:19 Cumulative 10.4 hours Start 2024.04.13 @ 15:41:34 End 2024.04.13 @ 16:30:31 Sessions 6 Manual Loads 0 Difficulty Rogue Special Mode None Game No. 8 Rogue 8 Adventurer 0 Explorer 0 Win Type - Total 0 Types 0/0/0/0/0/0/0/0/0 Lore% 8 Gallery% 13 Achievement% 16 Wizard Run 0 Options --------- Layout 0 ASCII 0 Keyboard 0 Movement Mouse Keybinds 0 Fullscreen 2 Font 18/SmallcapsGlow Map View 76x50 Zoom Use 0% Tactical HUD 1 Map Filters NONE Filters NONE Steam 1 RUN: 928e46fd-a8f0-4315-9d5c-b3e0aeb5f60c